[Event "Titled Tuesday Blitz January 17 Late 2023"]
[White "Pert, Richard G"]
[Black "Mikaelyan, Arman"]
[WhiteFideId "404748"]
[BlackFideId "13304852"]
[WhiteElo "2412"]
[BlackElo "2523"]
[Result "0-1"]
[Round "02"]
[TimeControl "180+2"]
[Date "2023.01.17"]
[WhiteClock "0:01:10"]
[BlackClock "0:01:57"]

1. e4 {[%clk 0:03:00]}  c5 {[%clk 0:02:58]} 2. Nf3 {[%clk 0:02:59]}  Nc6 {[%clk 0:02:58]} 3. Bb5 {[%clk 0:02:58]}  e6 {[%clk 0:02:58]} 4. Bxc6 {[%clk 0:02:56]}  bxc6 {[%clk 0:02:58]} 5. O-O {[%clk 0:02:55]}  Ne7 {[%clk 0:02:58]} 6. c3 {[%clk 0:02:54]}  d5 {[%clk 0:02:50]} 7. d4 {[%clk 0:02:54]}  Ng6 {[%clk 0:02:48]} 8. Re1 {[%clk 0:02:47]}  Be7 {[%clk 0:02:48]} 9. dxc5 {[%clk 0:02:39]}  Bxc5 {[%clk 0:02:35]} 10. Bg5 {[%clk 0:02:32]}  Qb6 {[%clk 0:02:33]} 11. Qc2 {[%clk 0:02:22]}  O-O {[%clk 0:02:27]} 12. b4 {[%clk 0:02:21]}  Bd6 {[%clk 0:02:27]} 13. e5 {[%clk 0:02:20]}  Bc7 {[%clk 0:02:17]} 14. Nbd2 {[%clk 0:02:15]}  Qb8 {[%clk 0:02:16]} 15. Nd4 {[%clk 0:01:55]}  Bd7 {[%clk 0:02:13]} 16. f4 {[%clk 0:01:30]}  h6 {[%clk 0:02:12]} 17. f5 {[%clk 0:01:29]}  exf5 {[%clk 0:02:10]} 18. Bxh6 {[%clk 0:01:21]}  gxh6 {[%clk 0:02:06]} 19. Nxf5 {[%clk 0:01:19]}  Bxf5 {[%clk 0:02:06]} 20. Qxf5 {[%clk 0:01:18]}  Bxe5 {[%clk 0:02:06]} 21. Nf3 {[%clk 0:01:18]}  Bxc3 {[%clk 0:02:02]} 22. h4 {[%clk 0:01:10]}  Qf4 {[%clk 0:01:57]} 0-1


[Site "https://www.chess.com"]

[Event "Titled Tuesday Blitz January 17 Late 2023"]
[White "Cori T., Deysi"]
[Black "Baskakov, Egor"]
[WhiteFideId "3801934"]
[BlackFideId "24197866"]
[WhiteElo "2362"]
[BlackElo "2215"]
[Result "0-1"]
[Round "02"]
[TimeControl "180+2"]
[Date "2023.01.17"]
[WhiteClock "0:00:02"]
[BlackClock "0:00:07"]

1. Nf3 {[%clk 0:03:00]}  Nf6 {[%clk 0:02:59]} 2. d4 {[%clk 0:03:00]}  e6 {[%clk 0:02:59]} 3. e3 {[%clk 0:02:59]}  d5 {[%clk 0:03:00]} 4. Nbd2 {[%clk 0:02:59]}  Ne4 {[%clk 0:03:00]} 5. Ne5 {[%clk 0:02:57]}  Nxd2 {[%clk 0:02:57]} 6. Bxd2 {[%clk 0:02:57]}  Nd7 {[%clk 0:02:58]} 7. Nxd7 {[%clk 0:02:57]}  Bxd7 {[%clk 0:02:59]} 8. c4 {[%clk 0:02:57]}  c6 {[%clk 0:02:56]} 9. Qc2 {[%clk 0:02:57]}  Bd6 {[%clk 0:02:56]} 10. e4 {[%clk 0:02:57]}  O-O {[%clk 0:02:53]} 11. e5 {[%clk 0:02:56]}  Be7 {[%clk 0:02:52]} 12. Bd3 {[%clk 0:02:56]}  g6 {[%clk 0:02:50]} 13. O-O {[%clk 0:02:57]}  Rc8 {[%clk 0:02:49]} 14. c5 {[%clk 0:02:56]}  f5 {[%clk 0:02:45]} 15. exf6 {[%clk 0:02:55]}  Bxf6 {[%clk 0:02:45]} 16. Bc3 {[%clk 0:02:56]}  Qe7 {[%clk 0:02:40]} 17. f4 {[%clk 0:02:55]}  Qg7 {[%clk 0:02:41]} 18. Qf2 {[%clk 0:02:54]}  b6 {[%clk 0:02:40]} 19. b4 {[%clk 0:02:53]}  bxc5 {[%clk 0:02:39]} 20. bxc5 {[%clk 0:02:53]}  g5 {[%clk 0:02:36]} 21. fxg5 {[%clk 0:02:45]}  Bxg5 {[%clk 0:02:35]} 22. Qg3 {[%clk 0:02:44]}  Kh8 {[%clk 0:02:12]} 23. Kh1 {[%clk 0:01:39]}  Rce8 {[%clk 0:01:51]} 24. Rae1 {[%clk 0:01:26]}  Bh6 {[%clk 0:01:25]} 25. Qh4 {[%clk 0:01:08]}  Rxf1+ {[%clk 0:01:14]} 26. Rxf1 {[%clk 0:01:03]}  Rg8 {[%clk 0:01:11]} 27. Rf2 {[%clk 0:00:47]}  Be3 {[%clk 0:01:05]} 28. Re2 {[%clk 0:00:47]}  Bg5 {[%clk 0:01:05]} 29. Qe1 {[%clk 0:00:28]}  Qh6 {[%clk 0:00:56]} 30. Qf1 {[%clk 0:00:13]}  Bf4 {[%clk 0:00:48]} 31. h3 {[%clk 0:00:14]}  Qg5 {[%clk 0:00:39]} 32. Be1 {[%clk 0:00:13]}  e5 {[%clk 0:00:24]} 33. dxe5 {[%clk 0:00:12]}  Be6 {[%clk 0:00:25]} 34. Qf3 {[%clk 0:00:12]}  Rf8 {[%clk 0:00:17]} 35. Rf2 {[%clk 0:00:11]}  Qxe5 {[%clk 0:00:16]} 36. Bd2 {[%clk 0:00:11]}  Bh6 {[%clk 0:00:12]} 37. Qe2 {[%clk 0:00:11]}  Qxe2 {[%clk 0:00:11]} 38. Rxe2 {[%clk 0:00:11]}  Bxd2 {[%clk 0:00:10]} 39. Rxd2 {[%clk 0:00:10]}  Kg7 {[%clk 0:00:10]} 40. Kg1 {[%clk 0:00:09]}  Rf4 {[%clk 0:00:09]} 41. Re2 {[%clk 0:00:09]}  Bf7 {[%clk 0:00:06]} 42. Re7 {[%clk 0:00:08]}  Rd4 {[%clk 0:00:07]} 43. Bxh7 {[%clk 0:00:07]}  Kf6 {[%clk 0:00:05]} 44. Rxa7 {[%clk 0:00:07]}  Rd1+ {[%clk 0:00:05]} 45. Kf2 {[%clk 0:00:07]}  Rc1 {[%clk 0:00:05]} 46. Kg3 {[%clk 0:00:06]}  Rxc5 {[%clk 0:00:05]} 47. Kf3 {[%clk 0:00:06]}  Rc3+ {[%clk 0:00:05]} 48. Ke2 {[%clk 0:00:06]}  c5 {[%clk 0:00:05]} 49. g4 {[%clk 0:00:06]}  d4 {[%clk 0:00:05]} 50. Be4 {[%clk 0:00:05]}  Bc4+ {[%clk 0:00:05]} 51. Kd2 {[%clk 0:00:05]}  Rxh3 {[%clk 0:00:06]} 52. Ra5 {[%clk 0:00:04]}  Rh2+ {[%clk 0:00:05]} 53. Kc1 {[%clk 0:00:03]}  Ke5 {[%clk 0:00:06]} 54. Rxc5+ {[%clk 0:00:03]}  Kxe4 {[%clk 0:00:06]} 55. Rxc4 {[%clk 0:00:04]}  Kd3 {[%clk 0:00:06]} 56. Rc7 {[%clk 0:00:03]}  Rxa2 {[%clk 0:00:06]} 57. g5 {[%clk 0:00:03]}  Ra1+ {[%clk 0:00:07]} 58. Kb2 {[%clk 0:00:02]}  Rg1 {[%clk 0:00:07]} 59. Rc5 {[%clk 0:00:02]}  Kd2 {[%clk 0:00:07]} 60. Kb3 {[%clk 0:00:01]}  d3 {[%clk 0:00:08]} 61. Rd5 {[%clk 0:00:02]}  Rg4 {[%clk 0:00:07]} 0-1


[Site "https://www.chess.com"]

[Event "Titled Tuesday Blitz January 17 Late 2023"]
[White "Paichadze, Luka"]
[Black "Megalios, Konstantinos"]
[WhiteFideId "13602934"]
[BlackFideId "4238044"]
[WhiteElo "2515"]
[BlackElo "2372"]
[Result "1-0"]
[Round "02"]
[TimeControl "180+2"]
[Date "2023.01.17"]
[WhiteClock "0:00:46"]
[BlackClock "0:00:01"]

1. e4 {[%clk 0:03:00]}  c6 {[%clk 0:02:58]} 2. d4 {[%clk 0:03:00]}  d5 {[%clk 0:02:58]} 3. e5 {[%clk 0:03:01]}  Bf5 {[%clk 0:02:57]} 4. h4 {[%clk 0:03:01]}  Qb6 {[%clk 0:02:57]} 5. Nc3 {[%clk 0:02:59]}  h5 {[%clk 0:02:53]} 6. Bd3 {[%clk 0:02:57]}  Qxd4 {[%clk 0:02:31]} 7. Nf3 {[%clk 0:02:55]}  Qg4 {[%clk 0:02:28]} 8. Bxf5 {[%clk 0:02:40]}  Qxf5 {[%clk 0:02:29]} 9. O-O {[%clk 0:02:34]}  e6 {[%clk 0:02:28]} 10. Re1 {[%clk 0:02:32]}  Bc5 {[%clk 0:02:23]} 11. Ne2 {[%clk 0:02:29]}  Ne7 {[%clk 0:02:15]} 12. Ned4 {[%clk 0:02:25]}  Qg4 {[%clk 0:02:03]} 13. c3 {[%clk 0:02:25]}  Nd7 {[%clk 0:01:59]} 14. Bg5 {[%clk 0:02:24]}  Nf5 {[%clk 0:01:57]} 15. Nxf5 {[%clk 0:02:06]}  Qxf5 {[%clk 0:01:56]} 16. Qb3 {[%clk 0:01:59]}  Bb6 {[%clk 0:01:46]} 17. a4 {[%clk 0:01:58]}  Nc5 {[%clk 0:01:43]} 18. Qb4 {[%clk 0:01:50]}  O-O {[%clk 0:01:27]} 19. Nd4 {[%clk 0:01:47]}  Qg4 {[%clk 0:01:16]} 20. Re3 {[%clk 0:01:28]}  Na6 {[%clk 0:00:36]} 21. Qb3 {[%clk 0:01:20]}  Bxd4 {[%clk 0:00:29]} 22. cxd4 {[%clk 0:01:21]}  Qxd4 {[%clk 0:00:29]} 23. Rd1 {[%clk 0:01:18]}  Qb6 {[%clk 0:00:29]} 24. Qc2 {[%clk 0:01:16]}  Nb4 {[%clk 0:00:26]} 25. Qb1 {[%clk 0:01:14]}  d4 {[%clk 0:00:25]} 26. Rg3 {[%clk 0:01:14]}  d3 {[%clk 0:00:24]} 27. Bf6 {[%clk 0:01:12]}  g6 {[%clk 0:00:18]} 28. Qc1 {[%clk 0:01:12]}  Kh7 {[%clk 0:00:14]} 29. Rg5 {[%clk 0:01:10]}  Rg8 {[%clk 0:00:10]} 30. Qf4 {[%clk 0:00:59]}  c5 {[%clk 0:00:04]} 31. Qf3 {[%clk 0:00:56]}  Rg7 {[%clk 0:00:01]} 32. Bxg7 {[%clk 0:00:54]}  Kxg7 {[%clk 0:00:02]} 33. Qf6+ {[%clk 0:00:53]}  Kg8 {[%clk 0:00:03]} 34. g4 {[%clk 0:00:53]}  Nd5 {[%clk 0:00:01]} 35. Qf3 {[%clk 0:00:52]}  hxg4 {[%clk 0:00:01]} 36. Qxg4 {[%clk 0:00:50]}  Qb4 {[%clk 0:00:01]} 37. Rxd3 {[%clk 0:00:46]} 1-0


[Site "https://www.chess.com"]

[Event "Titled Tuesday Blitz January 17 Late 2023"]
[White "Yanchenko, Roman"]
[Black "Martynov, Pavel"]
[WhiteFideId "4137329"]
[BlackFideId "4101260"]
[WhiteElo "2466"]
[BlackElo "2414"]
[Result "0-1"]
[Round "02"]
[TimeControl "180+2"]
[Date "2023.01.17"]
[WhiteClock "0:00:15"]
[BlackClock "0:00:14"]

1. d4 {[%clk 0:03:00]}  d5 {[%clk 0:02:59]} 2. c4 {[%clk 0:03:01]}  e6 {[%clk 0:03:00]} 3. Nc3 {[%clk 0:03:01]}  c5 {[%clk 0:03:00]} 4. e3 {[%clk 0:03:00]}  Nf6 {[%clk 0:03:00]} 5. Nf3 {[%clk 0:03:00]}  Nc6 {[%clk 0:03:00]} 6. a3 {[%clk 0:03:00]}  a6 {[%clk 0:03:00]} 7. h3 {[%clk 0:03:00]}  Be7 {[%clk 0:02:59]} 8. dxc5 {[%clk 0:02:59]}  Bxc5 {[%clk 0:02:59]} 9. b4 {[%clk 0:03:00]}  Ba7 {[%clk 0:03:00]} 10. Bb2 {[%clk 0:03:00]}  O-O {[%clk 0:02:58]} 11. Be2 {[%clk 0:02:57]}  Re8 {[%clk 0:02:52]} 12. O-O {[%clk 0:02:52]}  d4 {[%clk 0:02:39]} 13. exd4 {[%clk 0:02:51]}  Nxd4 {[%clk 0:02:40]} 14. c5 {[%clk 0:02:36]}  Nxe2+ {[%clk 0:02:34]} 15. Qxe2 {[%clk 0:02:37]}  b6 {[%clk 0:02:18]} 16. Rfd1 {[%clk 0:02:36]}  Qc7 {[%clk 0:02:18]} 17. cxb6 {[%clk 0:02:32]}  Bxb6 {[%clk 0:02:15]} 18. Rac1 {[%clk 0:02:32]}  Qa7 {[%clk 0:02:04]} 19. Na4 {[%clk 0:02:28]}  Bb7 {[%clk 0:01:43]} 20. Rd6 {[%clk 0:01:52]}  Bxf2+ {[%clk 0:01:30]} 21. Kf1 {[%clk 0:00:46]}  Ne4 {[%clk 0:01:18]} 22. Be5 {[%clk 0:00:46]}  Nxd6 {[%clk 0:00:50]} 23. Bxd6 {[%clk 0:00:47]}  Qe3 {[%clk 0:00:44]} 24. Rc7 {[%clk 0:00:42]}  Bxf3 {[%clk 0:00:44]} 25. Qxf2 {[%clk 0:00:39]}  Qd3+ {[%clk 0:00:42]} 26. Kg1 {[%clk 0:00:39]}  Qxd6 {[%clk 0:00:41]} 27. Rc3 {[%clk 0:00:23]}  Qd1+ {[%clk 0:00:39]} 28. Kh2 {[%clk 0:00:23]}  Qxa4 {[%clk 0:00:39]} 29. Rxf3 {[%clk 0:00:24]}  a5 {[%clk 0:00:36]} 30. Qd4 {[%clk 0:00:20]}  axb4 {[%clk 0:00:30]} 31. Qf4 {[%clk 0:00:20]}  f6 {[%clk 0:00:24]} 32. axb4 {[%clk 0:00:20]}  Rab8 {[%clk 0:00:24]} 33. Rg3 {[%clk 0:00:20]}  Kh8 {[%clk 0:00:20]} 34. Qc7 {[%clk 0:00:20]}  Rg8 {[%clk 0:00:19]} 35. Rxg7 {[%clk 0:00:21]}  Rxg7 {[%clk 0:00:18]} 36. Qxb8+ {[%clk 0:00:21]}  Rg8 {[%clk 0:00:19]} 37. Qd6 {[%clk 0:00:21]}  Qb5 {[%clk 0:00:16]} 38. Qe7 {[%clk 0:00:15]}  Qe5+ {[%clk 0:00:14]} 0-1


[Site "https://www.chess.com"]

[Event "Titled Tuesday Blitz January 17 Late 2023"]
[White "Holt, Conrad"]
[Black "Taboas Rodriguez, Daniel"]
[WhiteFideId "2034387"]
[BlackFideId "2208466"]
[WhiteElo "2540"]
[BlackElo "2371"]
[Result "1-0"]
[Round "02"]
[TimeControl "180+2"]
[Date "2023.01.17"]
[WhiteClock "0:01:08"]
[BlackClock "0:00:41"]

1. d4 {[%clk 0:03:00]}  Nf6 {[%clk 0:02:58]} 2. c4 {[%clk 0:03:01]}  g6 {[%clk 0:02:57]} 3. Nc3 {[%clk 0:03:01]}  Bg7 {[%clk 0:02:58]} 4. e4 {[%clk 0:03:01]}  d6 {[%clk 0:02:58]} 5. Nf3 {[%clk 0:03:01]}  O-O {[%clk 0:02:59]} 6. h3 {[%clk 0:03:02]}  c5 {[%clk 0:02:58]} 7. d5 {[%clk 0:03:02]}  e6 {[%clk 0:02:59]} 8. Bd3 {[%clk 0:03:03]}  exd5 {[%clk 0:02:59]} 9. cxd5 {[%clk 0:03:04]}  a6 {[%clk 0:02:55]} 10. a4 {[%clk 0:03:03]}  Nh5 {[%clk 0:02:54]} 11. O-O {[%clk 0:03:04]}  Nd7 {[%clk 0:02:54]} 12. Re1 {[%clk 0:03:02]}  Ne5 {[%clk 0:02:50]} 13. Be2 {[%clk 0:03:02]}  Nxf3+ {[%clk 0:02:42]} 14. Bxf3 {[%clk 0:03:02]}  Nf6 {[%clk 0:02:43]} 15. Bf4 {[%clk 0:03:02]}  Re8 {[%clk 0:02:23]} 16. Qd2 {[%clk 0:02:48]}  Qc7 {[%clk 0:02:19]} 17. e5 {[%clk 0:02:47]}  dxe5 {[%clk 0:02:18]} 18. d6 {[%clk 0:02:47]}  Qa5 {[%clk 0:02:04]} 19. Bxe5 {[%clk 0:02:38]}  Be6 {[%clk 0:02:04]} 20. Bxb7 {[%clk 0:02:24]}  Rab8 {[%clk 0:01:57]} 21. d7 {[%clk 0:02:24]}  Nxd7 {[%clk 0:01:49]} 22. Bxb8 {[%clk 0:02:23]}  Rxb8 {[%clk 0:01:48]} 23. Rxe6 {[%clk 0:02:23]}  Rxb7 {[%clk 0:01:38]} 24. Re8+ {[%clk 0:02:19]}  Bf8 {[%clk 0:01:36]} 25. Rd1 {[%clk 0:02:08]}  Nf6 {[%clk 0:01:36]} 26. Ra8 {[%clk 0:01:59]}  Kg7 {[%clk 0:01:31]} 27. Qd8 {[%clk 0:01:42]}  Qxd8 {[%clk 0:01:30]} 28. Rdxd8 {[%clk 0:01:42]}  Be7 {[%clk 0:01:30]} 29. Rdb8 {[%clk 0:01:43]}  Rd7 {[%clk 0:01:27]} 30. Rxa6 {[%clk 0:01:42]}  c4 {[%clk 0:01:24]} 31. Rc6 {[%clk 0:01:37]}  Rd4 {[%clk 0:01:14]} 32. Rb7 {[%clk 0:01:34]}  Bd8 {[%clk 0:01:12]} 33. Rc5 {[%clk 0:01:21]}  h5 {[%clk 0:01:06]} 34. a5 {[%clk 0:01:21]}  Rd6 {[%clk 0:01:01]} 35. Kf1 {[%clk 0:01:13]}  Ra6 {[%clk 0:00:52]} 36. Rxc4 {[%clk 0:01:08]}  Rxa5 {[%clk 0:00:43]} 37. Ra4 {[%clk 0:01:08]}  Rc5 {[%clk 0:00:41]} 38. Raa7 {[%clk 0:01:08]} 1-0


[Site "https://www.chess.com"]

[Event "Titled Tuesday Blitz January 17 Late 2023"]
[White "Lodici, Lorenzo"]
[Black "Defend, Balint"]
[WhiteFideId "884189"]
[BlackFideId "17004853"]
[WhiteElo "2524"]
[BlackElo "1673"]
[Result "1-0"]
[Round "02"]
[TimeControl "180+2"]
[Date "2023.01.17"]
[WhiteClock "0:01:18"]
[BlackClock "0:00:02"]

1. c4 {[%clk 0:02:39]}  Nf6 {[%clk 0:02:59]} 2. Nc3 {[%clk 0:02:39]}  e6 {[%clk 0:02:59]} 3. d4 {[%clk 0:02:37]}  Bb4 {[%clk 0:02:58]} 4. g3 {[%clk 0:02:35]}  c5 {[%clk 0:02:55]} 5. Nf3 {[%clk 0:02:35]}  O-O {[%clk 0:02:51]} 6. Bg2 {[%clk 0:02:35]}  d5 {[%clk 0:02:48]} 7. O-O {[%clk 0:02:33]}  dxc4 {[%clk 0:02:41]} 8. dxc5 {[%clk 0:02:32]}  Nc6 {[%clk 0:02:37]} 9. Nd2 {[%clk 0:02:00]}  Qd4 {[%clk 0:02:36]} 10. Nde4 {[%clk 0:01:56]}  Nxe4 {[%clk 0:02:32]} 11. Nxe4 {[%clk 0:01:57]}  Rd8 {[%clk 0:02:26]} 12. Qc2 {[%clk 0:01:50]}  Bd7 {[%clk 0:00:33]} 13. Bf4 {[%clk 0:01:43]}  g6 {[%clk 0:00:17]} 14. Bg5 {[%clk 0:01:42]}  Qe5 {[%clk 0:00:11]} 15. Bf6 {[%clk 0:01:36]}  Qf5 {[%clk 0:00:10]} 16. g4 {[%clk 0:01:34]}  Qxg4 {[%clk 0:00:10]} 17. Bxd8 {[%clk 0:01:33]}  Qf5 {[%clk 0:00:02]} 18. Bh4 {[%clk 0:01:27]}  e5 {[%clk 0:00:02]} 19. Qxc4 {[%clk 0:01:20]}  Be6 {[%clk 0:00:02]} 20. Qd3 {[%clk 0:01:18]} 1-0


[Site "https://www.chess.com"]

[Event "Titled Tuesday Blitz January 17 Late 2023"]
[White "Baules Rodriguez, Jorge Luis"]
[Black "Boruchovsky, Avital"]
[WhiteFideId "6600247"]
[BlackFideId "2800055"]
[WhiteElo "2304"]
[BlackElo "2539"]
[Result "0-1"]
[Round "02"]
[TimeControl "180+2"]
[Date "2023.01.17"]
[WhiteClock "0:00:18"]
[BlackClock "0:00:18"]

1. e4 {[%clk 0:03:00]}  e6 {[%clk 0:02:57]} 2. d4 {[%clk 0:03:00]}  d5 {[%clk 0:02:58]} 3. e5 {[%clk 0:02:56]}  c5 {[%clk 0:02:57]} 4. c3 {[%clk 0:02:57]}  Nc6 {[%clk 0:02:54]} 5. Nf3 {[%clk 0:02:57]}  Bd7 {[%clk 0:02:53]} 6. a3 {[%clk 0:02:54]}  Nh6 {[%clk 0:02:46]} 7. Bd3 {[%clk 0:02:48]}  Nf5 {[%clk 0:02:42]} 8. O-O {[%clk 0:02:45]}  cxd4 {[%clk 0:02:40]} 9. Bxf5 {[%clk 0:02:44]}  exf5 {[%clk 0:02:41]} 10. cxd4 {[%clk 0:02:44]}  Be7 {[%clk 0:02:42]} 11. Nc3 {[%clk 0:02:44]}  Be6 {[%clk 0:02:42]} 12. Ne1 {[%clk 0:02:40]}  O-O {[%clk 0:02:41]} 13. Be3 {[%clk 0:02:37]}  Rc8 {[%clk 0:02:38]} 14. Nd3 {[%clk 0:02:28]}  Na5 {[%clk 0:02:34]} 15. Nf4 {[%clk 0:02:18]}  Nc4 {[%clk 0:02:29]} 16. Qf3 {[%clk 0:02:17]}  Nb6 {[%clk 0:02:17]} 17. Rac1 {[%clk 0:02:07]}  Qd7 {[%clk 0:02:17]} 18. Nh5 {[%clk 0:01:57]}  Kh8 {[%clk 0:02:06]} 19. Qg3 {[%clk 0:01:32]}  Rg8 {[%clk 0:02:05]} 20. Bg5 {[%clk 0:01:16]}  Nc4 {[%clk 0:01:52]} 21. Bxe7 {[%clk 0:00:55]}  Qxe7 {[%clk 0:01:53]} 22. Rc2 {[%clk 0:00:50]}  a6 {[%clk 0:01:38]} 23. Rfc1 {[%clk 0:00:48]}  h6 {[%clk 0:01:21]} 24. Ne2 {[%clk 0:00:44]}  Qg5 {[%clk 0:01:14]} 25. Nef4 {[%clk 0:00:27]}  Qxg3 {[%clk 0:01:09]} 26. hxg3 {[%clk 0:00:27]}  Nxb2 {[%clk 0:01:03]} 27. Nxe6 {[%clk 0:00:27]}  Rxc2 {[%clk 0:00:53]} 28. Rxc2 {[%clk 0:00:26]}  Nc4 {[%clk 0:00:54]} 29. Nef4 {[%clk 0:00:25]}  Rd8 {[%clk 0:00:52]} 30. Nxd5 {[%clk 0:00:21]}  Nxa3 {[%clk 0:00:49]} 31. Ra2 {[%clk 0:00:19]}  Rxd5 {[%clk 0:00:43]} 32. Rxa3 {[%clk 0:00:20]}  Rxd4 {[%clk 0:00:44]} 33. Nf4 {[%clk 0:00:20]}  g5 {[%clk 0:00:43]} 34. Nd3 {[%clk 0:00:19]}  Rd5 {[%clk 0:00:42]} 35. Rb3 {[%clk 0:00:20]}  b5 {[%clk 0:00:41]} 36. f4 {[%clk 0:00:20]}  a5 {[%clk 0:00:39]} 37. Ne1 {[%clk 0:00:19]}  b4 {[%clk 0:00:37]} 38. Rb1 {[%clk 0:00:19]}  Rd4 {[%clk 0:00:34]} 39. fxg5 {[%clk 0:00:19]}  hxg5 {[%clk 0:00:34]} 40. Nf3 {[%clk 0:00:20]}  Rc4 {[%clk 0:00:30]} 41. Nxg5 {[%clk 0:00:20]}  Kg7 {[%clk 0:00:31]} 42. Nf3 {[%clk 0:00:20]}  a4 {[%clk 0:00:31]} 43. Nd2 {[%clk 0:00:21]}  Rd4 {[%clk 0:00:31]} 44. Nf3 {[%clk 0:00:21]}  Rg4 {[%clk 0:00:28]} 45. Kf2 {[%clk 0:00:20]}  b3 {[%clk 0:00:28]} 46. Nh4 {[%clk 0:00:20]}  Rb4 {[%clk 0:00:27]} 47. Nxf5+ {[%clk 0:00:20]}  Kg6 {[%clk 0:00:27]} 48. Ne3 {[%clk 0:00:20]}  a3 {[%clk 0:00:26]} 49. Nd1 {[%clk 0:00:20]}  a2 {[%clk 0:00:17]} 50. Ra1 {[%clk 0:00:20]}  b2 {[%clk 0:00:17]} 51. Nxb2 {[%clk 0:00:20]}  Rxb2+ {[%clk 0:00:18]} 52. Kf3 {[%clk 0:00:21]}  Kf5 {[%clk 0:00:19]} 53. g4+ {[%clk 0:00:21]}  Kxe5 {[%clk 0:00:19]} 54. Kg3 {[%clk 0:00:21]}  Kf6 {[%clk 0:00:18]} 55. Kh4 {[%clk 0:00:21]}  Rxg2 {[%clk 0:00:18]} 56. Rf1+ {[%clk 0:00:21]}  Ke6 {[%clk 0:00:18]} 57. Ra1 {[%clk 0:00:22]}  Kd5 {[%clk 0:00:18]} 58. Kg5 {[%clk 0:00:21]}  Kc4 {[%clk 0:00:18]} 59. Kf6 {[%clk 0:00:20]}  Rf2+ {[%clk 0:00:18]} 60. Kg7 {[%clk 0:00:20]}  Kb3 {[%clk 0:00:18]} 61. g5 {[%clk 0:00:20]}  Kb2 {[%clk 0:00:19]} 62. Rxa2+ {[%clk 0:00:18]}  Kxa2 {[%clk 0:00:18]} 0-1


[Site "https://www.chess.com"]

[Event "Titled Tuesday Blitz January 17 Late 2023"]
[White "Mostbauer, Maximilian"]
[Black "Pakleza, Zbigniew"]
[WhiteFideId "1626680"]
[BlackFideId "1119290"]
[WhiteElo "2167"]
[BlackElo "2494"]
[Result "0-1"]
[Round "02"]
[TimeControl "180+2"]
[Date "2023.01.17"]
[WhiteClock "0:00:06"]
[BlackClock "0:00:04"]

1. d4 {[%clk 0:03:00]}  d6 {[%clk 0:02:59]} 2. Nf3 {[%clk 0:02:59]}  Bg4 {[%clk 0:02:58]} 3. g3 {[%clk 0:02:57]}  Bxf3 {[%clk 0:02:58]} 4. exf3 {[%clk 0:02:57]}  e6 {[%clk 0:02:58]} 5. Bg2 {[%clk 0:02:56]}  c6 {[%clk 0:02:58]} 6. O-O {[%clk 0:02:52]}  g6 {[%clk 0:02:58]} 7. b3 {[%clk 0:02:52]}  Bg7 {[%clk 0:02:58]} 8. Bb2 {[%clk 0:02:50]}  Ne7 {[%clk 0:02:58]} 9. Nd2 {[%clk 0:02:49]}  O-O {[%clk 0:02:58]} 10. f4 {[%clk 0:02:49]}  Nd7 {[%clk 0:02:51]} 11. Nf3 {[%clk 0:02:49]}  Rc8 {[%clk 0:02:36]} 12. Qe2 {[%clk 0:02:49]}  d5 {[%clk 0:02:26]} 13. Ne5 {[%clk 0:02:49]}  c5 {[%clk 0:02:25]} 14. dxc5 {[%clk 0:02:45]}  Nxc5 {[%clk 0:02:20]} 15. Rfd1 {[%clk 0:02:36]}  Qc7 {[%clk 0:02:07]} 16. c4 {[%clk 0:02:33]}  dxc4 {[%clk 0:01:59]} 17. Nxc4 {[%clk 0:02:15]}  Bxb2 {[%clk 0:01:51]} 18. Qxb2 {[%clk 0:02:15]}  Rfd8 {[%clk 0:01:46]} 19. Qf6 {[%clk 0:01:50]}  Nf5 {[%clk 0:01:39]} 20. Ne5 {[%clk 0:01:10]}  a5 {[%clk 0:01:05]} 21. Ng4 {[%clk 0:00:41]}  h5 {[%clk 0:01:00]} 22. Ne5 {[%clk 0:00:35]}  Qe7 {[%clk 0:00:59]} 23. Qxe7 {[%clk 0:00:29]}  Nxe7 {[%clk 0:01:00]} 24. Rac1 {[%clk 0:00:23]}  b6 {[%clk 0:00:58]} 25. Nc4 {[%clk 0:00:23]}  Rxd1+ {[%clk 0:00:40]} 26. Rxd1 {[%clk 0:00:24]}  Rb8 {[%clk 0:00:41]} 27. Rd6 {[%clk 0:00:22]}  Nf5 {[%clk 0:00:27]} 28. Rxb6 {[%clk 0:00:22]}  Rd8 {[%clk 0:00:28]} 29. Bf3 {[%clk 0:00:21]}  Rd3 {[%clk 0:00:23]} 30. Kg2 {[%clk 0:00:21]}  Nd4 {[%clk 0:00:21]} 31. Ne5 {[%clk 0:00:20]}  Rc3 {[%clk 0:00:19]} 32. Rd6 {[%clk 0:00:19]}  Nf5 {[%clk 0:00:14]} 33. Rc6 {[%clk 0:00:16]}  Rc2 {[%clk 0:00:07]} 34. Rc8+ {[%clk 0:00:16]}  Kg7 {[%clk 0:00:07]} 35. Rc7 {[%clk 0:00:16]}  Ne3+ {[%clk 0:00:03]} 36. Kh3 {[%clk 0:00:17]}  Rxf2 {[%clk 0:00:03]} 37. Rxc5 {[%clk 0:00:16]}  f6 {[%clk 0:00:04]} 38. Nxg6 {[%clk 0:00:13]}  Kxg6 {[%clk 0:00:04]} 39. Bxh5+ {[%clk 0:00:14]}  Kh6 {[%clk 0:00:04]} 40. g4 {[%clk 0:00:06]}  Rf3+ {[%clk 0:00:03]} 41. Kh4 {[%clk 0:00:06]}  Ng2# {[%clk 0:00:04]} 0-1


[Site "https://www.chess.com"]

[Event "Titled Tuesday Blitz January 17 Late 2023"]
[White "Boros, Denes"]
[Black "Bilan, Danila"]
[WhiteFideId "722340"]
[BlackFideId "24161918"]
[WhiteElo "2406"]
[BlackElo "2303"]
[Result "1-0"]
[Round "02"]
[TimeControl "180+2"]
[Date "2023.01.17"]
[WhiteClock "0:01:19"]
[BlackClock "0:00:08"]

1. d4 {[%clk 0:03:00]}  d5 {[%clk 0:02:52]} 2. Nc3 {[%clk 0:03:01]}  Nf6 {[%clk 0:02:52]} 3. Bg5 {[%clk 0:03:00]}  Bf5 {[%clk 0:02:49]} 4. h4 {[%clk 0:02:55]}  e6 {[%clk 0:02:39]} 5. e4 {[%clk 0:02:51]}  dxe4 {[%clk 0:02:33]} 6. g4 {[%clk 0:02:44]}  Bxg4 {[%clk 0:01:51]} 7. Bxf6 {[%clk 0:02:43]}  gxf6 {[%clk 0:01:44]} 8. Qxg4 {[%clk 0:02:42]}  f5 {[%clk 0:01:45]} 9. Qg3 {[%clk 0:02:23]}  c6 {[%clk 0:01:32]} 10. O-O-O {[%clk 0:02:19]}  Nd7 {[%clk 0:01:24]} 11. f3 {[%clk 0:02:17]}  Bh6+ {[%clk 0:01:04]} 12. Kb1 {[%clk 0:02:16]}  exf3 {[%clk 0:01:00]} 13. Nxf3 {[%clk 0:02:14]}  Qf6 {[%clk 0:00:59]} 14. Qc7 {[%clk 0:02:01]}  Rb8 {[%clk 0:00:52]} 15. d5 {[%clk 0:01:51]}  cxd5 {[%clk 0:00:43]} 16. Nxd5 {[%clk 0:01:35]}  Qd8 {[%clk 0:00:35]} 17. Bb5 {[%clk 0:01:27]}  exd5 {[%clk 0:00:08]} 18. Bxd7+ {[%clk 0:01:22]}  Kf8 {[%clk 0:00:08]} 19. Qd6+ {[%clk 0:01:19]} 1-0


[Site "https://www.chess.com"]